fUST/lending_fUST_20240902
["ID","MTS","AMOUNT","RATE_DAILY","PERIOD"]
[336888267,1725233449048,-500.0,0.00024931,2]
[336888268,1725233449058,-2241.93,0.00024931,2]
[336888269,1725233449068,-500.0,0.00024931,2]
[336888270,1725233449077,-556.85,0.00024931,2]
[336888271,1725233449087,-740.31,0.00024931,2]
[336888272,1725233449096,-1370.86,0.00024931,2]
[336888273,1725233449106,-500.0,0.00024931,2]
[336888274,1725233449115,-500.0,0.00024931,2]
[336888275,1725233449126,-500.0,0.00024931,2]
[336888276,1725233449136,-757.7,0.00024931,2]
[336888277,1725233449146,-505.29352395,0.00024931,2]
[336888278,1725233449156,-500.0,0.00024931,2]
[336888279,1725233449167,-500.0,0.00024931,2]
[336888280,1725233449176,-500.0,0.00024931,2]
[336888281,1725233449187,-500.0,0.00024931,2]
[336888282,1725233449197,-500.0,0.00024931,2]
[336888283,1725233449207,-500.0,0.00024931,2]
[336888284,1725233449216,-3217.34,0.00024931,2]
[336888285,1725233449227,-1780.41,0.00024931,2]
[336888286,1725233449238,-500.0,0.00024931,2]
[336888287,1725233449248,-500.0,0.00024931,2]
[336888288,1725233449258,-14185.66,0.00024931,2]
[336888289,1725233449268,-500.0,0.00024931,2]
[336888290,1725233449279,-1568.11,0.00024931,2]
[336888291,1725233449290,-500.0,0.00024931,2]
[336888292,1725233449301,-678.57,0.00024931,2]
[336888293,1725233449311,-500.0,0.00024931,2]
[336888294,1725233449321,-500.0,0.00024931,2]
[336888295,1725233449331,-1769.13,0.00024931,2]
[336888296,1725233449340,-161.511001,0.00024931,7]
[336888297,1725233449351,-500.0,0.00024931,2]
[336888298,1725233449361,-500.0,0.00024931,2]
[336888299,1725233449370,-1948.8,0.00024931,2]
[336888300,1725233449380,-500.0,0.00024931,2]
[336888301,1725233449389,-531.01,0.00024931,2]
[336888302,1725233449398,-1076.27,0.00024931,2]
[336888303,1725233449408,-2754.06,0.00024931,2]
[336888304,1725233449417,-500.0,0.00024931,2]
[336888305,1725233449427,-500.0,0.00024931,2]
[336888306,1725233449436,-635.95,0.00024931,2]
[336888307,1725233449446,-500.0,0.00024931,2]
[336888308,1725233449455,-500.0,0.00024931,2]
[336888309,1725233449465,-500.0,0.00024931,2]
[336888310,1725233449474,-672.12,0.00024931,2]
[336888311,1725233449483,-500.0,0.00024931,2]
[336888312,1725233449493,-500.0,0.00024931,2]
[336888313,1725233449503,-2363.96,0.00024931,2]
[336888314,1725233449512,-779.93,0.00024931,2]
[336888315,1725233449522,-500.0,0.00024931,2]
[336888316,1725233449532,-2592.72,0.00024931,2]
[336888317,1725233449542,-1222.39639309,0.00024931,2]
[336888318,1725233449874,-184.21820267,0.00024657,2]
[336888319,1725233450074,-315.78179733,0.00024657,2]
[336888320,1725233450083,-500.0,0.00024657,2]
[336888321,1725233450093,-500.0,0.00024657,2]
[336888322,1725233450103,-500.0,0.00024657,2]
[336888323,1725233450112,-1115.86,0.00024657,2]
[336888324,1725233450122,-500.0,0.00024657,2]
[336888325,1725233450131,-1682.46360691,0.00024931,2]
[336888326,1725233450141,-155.00327664,0.00024931,2]
[336888327,1725233450150,-500.0,0.00024931,2]
[336888328,1725233450160,-500.0,0.00024931,2]
[336888329,1725233450171,-500.0,0.00024931,2]
[336888330,1725233450181,-794.89,0.00024931,2]
[336888331,1725233450191,-509.6084453,0.00024931,2]
[336888332,1725233450200,-1368.99,0.00024931,2]
[336888333,1725233450209,-500.0,0.00024931,2]
[336888334,1725233450219,-503.0032315,0.00024931,2]
[336888335,1725233450229,-500.0,0.00024931,2]
[336888336,1725233450239,-1021.59,0.00024931,2]
[336888337,1725233450248,-500.0,0.00024931,2]
[336888338,1725233450258,-500.0,0.00024931,2]
[336888339,1725233450267,-500.0,0.00024931,2]
[336888340,1725233450277,-509.7008296,0.00024931,2]
[336888341,1725233450287,-1683.33,0.00024931,2]
[336888342,1725233450296,-803.65,0.00024931,2]
[336888343,1725233450308,-500.0,0.00024931,2]
[336888344,1725233450328,-500.0,0.00024931,2]
[336888345,1725233450338,-500.0,0.00024931,2]
[336888346,1725233450348,-695.67,0.00024931,2]
[336888347,1725233450360,-500.0,0.00024931,2]
[336888348,1725233450370,-500.0,0.00024931,2]
[336888350,1725233450379,-500.0,0.00024931,2]
[336888351,1725233450388,-500.0,0.00024931,2]
[336888352,1725233450398,-1497.58,0.00024931,2]
[336888353,1725233450408,-159.22190684,0.00024931,2]
[336888354,1725233450417,-1579.75,0.00024931,2]
[336888355,1725233450555,-1619.26,0.00024931,2]
[336888356,1725233450565,-500.0,0.00024931,2]
[336888357,1725233450575,-652.33,0.00024931,2]
[336888358,1725233450584,-500.0,0.00024931,2]
[336888359,1725233450594,-1364.17,0.00024931,2]
[336888360,1725233450603,-771.48,0.00024931,2]
[336888361,1725233450612,-1158.56,0.00024931,2]
[336888362,1725233450621,-508.11,0.00024931,2]
[336888363,1725233450630,-500.0,0.00024931,2]
[336888364,1725233450639,-500.0,0.00024931,2]
[336888365,1725233450649,-500.0,0.00024931,2]
[336888366,1725233450658,-802.51,0.00024931,2]
[336888367,1725233450667,-1289.72,0.00024931,2]
[336888368,1725233450676,-500.0,0.00024931,2]
[336888369,1725233450685,-500.0,0.00024931,2]
[336888370,1725233450694,-500.0,0.00024931,2]
[336888371,1725233450704,-500.0,0.00024931,2]
[336888372,1725233450713,-500.0,0.00024931,2]
[336888373,1725233450722,-628.61,0.00024931,2]
[336888374,1725233450731,-500.0,0.00024931,2]
[336888375,1725233450741,-1891.36,0.00024931,2]
[336888376,1725233450750,-1291.81,0.00024931,2]
[336888377,1725233450759,-500.0,0.00024931,2]
[336888378,1725233450768,-697.16,0.00024931,2]
[336888379,1725233450778,-1697.09,0.00024931,2]
[336888380,1725233450788,-500.0,0.00024931,2]
[336888381,1725233450801,-500.0,0.00024931,2]
[336888382,1725233450811,-500.0,0.00024931,2]
[336888383,1725233450821,-1800.22,0.00024931,2]
[336888384,1725233450831,-501.9532307,0.00024931,2]
[336888385,1725233450841,-500.0,0.00024931,2]
[336888386,1725233450851,-500.0,0.00024931,2]
[336888387,1725233450861,-500.0,0.00024931,2]
[336888388,1725233450872,-625.64,0.00024931,2]
[336888389,1725233450882,-1207.6,0.00024931,2]
[336888390,1725233450893,-729.96,0.00024931,2]
[336888391,1725233450903,-500.0,0.00024931,2]
[336888392,1725233450913,-2946.26,0.00024931,2]
[336888393,1725233450922,-500.0,0.00024931,2]
[336888394,1725233450931,-504.54,0.00024931,2]
[336888395,1725233450941,-500.0,0.00024931,2]
[336888396,1725233450951,-8915.77,0.00024931,2]
[336888397,1725233450960,-500.0,0.00024931,2]
[336888398,1725233450970,-1725.92,0.00024931,2]
[336888399,1725233450980,-500.0,0.00024931,2]
[336888400,1725233450990,-500.0,0.00024931,2]
[336888401,1725233450999,-500.0,0.00024931,2]
[336888402,1725233451009,-500.0,0.00024931,2]
[336888403,1725233451018,-1410.55,0.00024931,2]
[336888404,1725233451028,-1193.98,0.00024931,2]
[336888405,1725233451038,-3356.77,0.00024931,2]
[336888406,1725233451049,-500.0,0.00024931,2]
[336888407,1725233451058,-1701.97,0.00024931,2]
[336888408,1725233451067,-500.0,0.00024931,2]
[336888409,1725233451076,-1240.79,0.00024931,2]
[336888410,1725233451086,-2345.51,0.00024931,2]
[336888411,1725233451095,-347.67815756,0.00024931,2]
[336888412,1725233451105,-270.28823137,0.00024931,2]
[336888413,1725233451115,-500.0,0.00024931,2]
[336888414,1725233451124,-500.0,0.00024931,2]
[336888415,1725233451133,-500.0,0.00024931,2]
[336888416,1725233451142,-500.0,0.00024931,2]
[336888417,1725233451152,-1963.27,0.00024931,2]
[336888418,1725233451162,-500.0,0.00024931,2]
[336888419,1725233451172,-500.0,0.00024931,2]
[336888420,1725233451181,-5236.57,0.00024931,2]
[336888421,1725233451190,-595.48,0.00024931,2]
[336888422,1725233451200,-500.0,0.00024931,2]
[336888423,1725233451210,-500.0,0.00024931,2]
[336888424,1725233451220,-643.02,0.00024931,2]
[336888425,1725233451229,-500.0,0.00024931,2]
[336888426,1725233451239,-2120.18,0.00024931,2]
[336888427,1725233451249,-1279.5,0.00024931,2]
[336888428,1725233451258,-500.0,0.00024931,2]
[336888429,1725233451267,-500.0,0.00024931,2]
[336888430,1725233451278,-500.0,0.00024931,2]
[336888431,1725233451287,-500.0,0.00024931,2]
[336888432,1725233451298,-500.0,0.00024931,2]
[336888433,1725233451307,-500.0,0.00024931,2]
[336888434,1725233451317,-2008.27,0.00024931,2]
[336888435,1725233451326,-527.81,0.00024931,2]
[336888436,1725233451337,-1425.41,0.00024931,2]
[336888437,1725233451346,-500.0,0.00024931,2]
[336888438,1725233451356,-505.59845591,0.00024931,2]
[336888439,1725233451365,-500.0,0.00024931,2]
[336888440,1725233451374,-500.0,0.00024931,2]
[336888441,1725233451384,-500.0,0.00024931,2]
[336888442,1725233451394,-1115.86,0.00024931,2]
[336888443,1725233451404,-190.0,0.00024932,2]
[336888444,1725233451413,-409.6979826,0.00024932,2]
[336888445,1725233451422,-500.0,0.00024973,2]
[336888446,1725233451432,-500.0,0.00024973,2]
[336888447,1725233451441,-150.112233,0.00025,2]
[336888448,1725233451451,-190.0,0.00025,2]
[336888449,1725233451460,-25130.38802756,0.00025,2]
[336888450,1725233451470,-150.112233,0.00025,8]
[336888451,1725233451479,-150.112233,0.00025,3]
[336888452,1725233451488,-156.0,0.00025,2]
[336888453,1725233451497,-150.0,0.00025058,2]
[336888454,1725233451506,-3082.14210838,0.00025062,2]
[336888455,1725233451516,-150.112233,0.000251,10]
[336888456,1725233451525,-150.112233,0.000251,10]
[336888457,1725233451534,-153.02792783,0.00025105,7]
[336888458,1725233451544,-153.52,0.00025105,7]
[336888459,1725233451555,-153.21542783,0.00025105,7]
[336888460,1725233451564,-153.21542783,0.00025105,7]
[336888461,1725233451574,-153.21542783,0.00025105,7]
[336888462,1725233451583,-153.21542783,0.00025105,7]
[336888463,1725233451592,-153.21542783,0.00025105,7]
[336888464,1725233451601,-153.21542783,0.00025105,7]
[336888465,1725233451610,-153.21542783,0.00025105,7]
[336888466,1725233451619,-153.99529182,0.00025105,7]
[336888467,1725233451628,-154.49,0.00025105,7]
[336888468,1725233451637,-154.18279182,0.00025105,7]
[336888469,1725233451647,-154.18279182,0.00025105,7]
[336888470,1725233451655,-154.18279182,0.00025105,7]
[336888471,1725233451664,-154.18279182,0.00025105,7]
[336888472,1725233451673,-154.18279182,0.00025105,7]
[336888473,1725233451683,-154.18279182,0.00025105,7]
[336888474,1725233451692,-154.18279182,0.00025105,7]
[336888475,1725233451700,-3960.48637415,0.00025136,2]
[336888476,1725233451710,-451.8415669,0.00025151,2]
[336888477,1725233451719,-4174.66591044,0.00025195,3]
[336888478,1725233451728,-3000.0,0.000252,2]
[336888479,1725233451737,-150.112233,0.000252,8]
[336888480,1725233451747,-864.97,0.00025204,2]
[336888481,1725233451756,-500.0,0.00025204,2]
[336888482,1725233451765,-500.0,0.00025205,2]
[336888483,1725233451775,-571.96,0.00025205,2]
[336888484,1725233451785,-500.0,0.00025205,2]
[336888485,1725233451797,-500.0,0.00025205,2]
[336888486,1725233451806,-500.0,0.00025205,2]
[336888487,1725233451816,-153.00000002,0.00025205,2]
[336888488,1725233451826,-500.0,0.00025205,2]
[336888489,1725233451836,-500.0,0.00025205,2]
[336888490,1725233451846,-500.0,0.00025205,2]
[336888491,1725233451855,-500.0,0.00025205,2]
[336888492,1725233451864,-500.0,0.00025205,2]
[336888493,1725233451874,-500.0,0.00025205,2]
[336888494,1725233451883,-500.0,0.00025205,2]
[336888495,1725233451892,-753.39,0.00025205,2]
[336888496,1725233451901,-500.0,0.00025205,2]
[336888497,1725233451911,-500.0,0.00025205,2]
[336888498,1725233451920,-500.0,0.00025205,2]
[336888499,1725233451929,-500.0,0.00025205,2]
[336888500,1725233451938,-500.0,0.00025205,2]
[336888501,1725233451947,-500.0,0.00025205,2]
[336888502,1725233451956,-500.0,0.00025205,2]
[336888503,1725233451966,-500.0,0.00025205,2]
[336888504,1725233451975,-500.0,0.00025205,2]
[336888505,1725233451984,-500.0,0.00025205,2]
[336888506,1725233451993,-500.0,0.00025205,2]
[336888507,1725233452003,-500.0,0.00025205,2]
[336888508,1725233452012,-500.0,0.00025205,2]
[336888509,1725233452021,-500.0,0.00025205,2]
[336888510,1725233452031,-500.0,0.00025205,2]
[336888511,1725233452040,-500.0,0.00025205,2]
[336888512,1725233452052,-500.0,0.00025205,2]
[336888513,1725233452061,-500.0,0.00025205,2]
[336888514,1725233452070,-500.0,0.00025205,2]
[336888515,1725233452079,-500.0,0.00025205,2]
[336888516,1725233452088,-500.0,0.00025205,2]
[336888517,1725233452098,-532.2,0.00025205,2]
[336888518,1725233452108,-609.68,0.00025205,2]
[336888519,1725233452117,-505.03832466,0.00025205,2]
[336888520,1725233452126,-500.0,0.00025205,2]
[336888521,1725233452135,-500.0,0.00025205,2]
[336888522,1725233452144,-500.0,0.00025205,2]
[336888523,1725233452154,-758.27,0.00025205,2]
[336888524,1725233452163,-500.0,0.00025205,2]
[336888525,1725233452173,-795.29,0.00025205,2]
[336888526,1725233452182,-500.0,0.00025205,2]
[336888527,1725233452192,-753.32,0.00025205,2]
[336888528,1725233452201,-500.0,0.00025205,2]
[336888529,1725233452211,-500.0,0.00025205,2]
[336888530,1725233452221,-500.0,0.00025205,2]
[336888531,1725233452230,-500.0,0.00025205,2]
[336888532,1725233452240,-500.0,0.00025205,2]
[336888533,1725233452249,-200.0,0.00025205,2]
[336888534,1725233452259,-505.14774359,0.00025205,2]
[336888535,1725233452268,-194.44568111,0.00025205,2]
[336888536,1725233452278,-500.0,0.00025205,2]
[336888537,1725233452287,-500.0,0.00025205,2]
[336888538,1725233452296,-500.0,0.00025205,2]
[336888539,1725233452306,-672.7,0.00025205,2]
[336888540,1725233452316,-542.83832161,0.00025205,2]
[336888541,1725233452325,-500.0,0.00025205,2]
[336888542,1725233452334,-500.0,0.00025205,2]
[336888543,1725233452343,-1363.94,0.00025205,2]
[336888544,1725233452353,-500.0,0.00025205,2]
[336888545,1725233452362,-911.13,0.00025205,2]
[336888546,1725233452372,-500.0,0.00025205,2]
[336888547,1725233452380,-500.0,0.00025205,2]
[336888548,1725233452389,-500.0,0.00025205,2]
[336888549,1725233452399,-500.0,0.00025205,2]
[336888550,1725233452408,-500.0,0.00025205,2]
[336888551,1725233452418,-763.69,0.00025205,2]
[336888552,1725233452427,-500.0,0.00025205,2]
[336888553,1725233452436,-500.0,0.00025205,2]
[336888554,1725233452445,-500.0,0.00025205,2]
[336888555,1725233452456,-500.0,0.00025205,2]
[336888556,1725233452465,-1013.08,0.00025205,2]
[336888557,1725233452474,-500.0,0.00025205,2]
[336888558,1725233452483,-500.0,0.00025205,2]
[336888559,1725233452492,-500.0,0.00025205,2]
[336888560,1725233452502,-1349.69,0.00025205,2]
[336888561,1725233452514,-526.21,0.00025205,2]
[336888562,1725233452624,-500.0,0.00025205,2]
[336888563,1725233452633,-500.0,0.00025205,2]
[336888564,1725233452643,-500.0,0.00025205,2]
[336888565,1725233452652,-500.0,0.00025205,2]
[336888566,1725233452661,-500.0,0.00025205,2]
[336888567,1725233452670,-500.0,0.00025205,2]
[336888568,1725233452679,-500.0,0.00025205,2]
[336888569,1725233452688,-500.0,0.00025205,2]
[336888570,1725233452698,-500.0,0.00025205,2]
[336888571,1725233452707,-500.0,0.00025205,2]
[336888572,1725233452716,-500.0,0.00025205,2]
[336888573,1725233452727,-500.0,0.00025205,2]
[336888574,1725233452737,-500.0,0.00025205,2]
[336888575,1725233452747,-500.0,0.00025205,2]
[336888576,1725233452758,-607.58,0.00025205,2]
[336888577,1725233452767,-500.0,0.00025205,2]
[336888578,1725233452777,-500.0,0.00025205,2]
[336888579,1725233452787,-507.05321203,0.00025205,2]
[336888580,1725233452801,-500.0,0.00025205,2]
[336888581,1725233452812,-500.0,0.00025205,2]
[336888582,1725233452821,-500.0,0.00025205,2]
[336888583,1725233452831,-4139.23,0.00025205,2]
[336888584,1725233452840,-500.0,0.00025205,2]
[336888585,1725233452851,-500.0,0.00025205,2]
[336888586,1725233452861,-500.0,0.00025205,2]
[336888587,1725233452870,-500.0,0.00025205,2]
[336888588,1725233452882,-500.0,0.00025205,2]
[336888589,1725233452891,-500.0,0.00025205,2]
[336888590,1725233452902,-500.0,0.00025205,2]
[336888591,1725233452913,-500.0,0.00025205,2]
[336888592,1725233452923,-206.59434215,0.00025205,2]
[336888593,1725233452933,-500.0,0.00025205,2]
[336888594,1725233452943,-500.0,0.00025205,2]
[336888595,1725233452955,-500.0,0.00025205,2]
[336888596,1725233452964,-1325.14,0.00025205,2]
[336888597,1725233452973,-500.0,0.00025205,2]
[336888598,1725233452983,-500.0,0.00025205,2]
[336888599,1725233452992,-500.0,0.00025205,2]
[336888600,1725233453001,-672.27,0.00025205,2]
[336888601,1725233453010,-500.0,0.00025205,2]
[336888602,1725233453019,-500.0,0.00025205,2]
[336888603,1725233453029,-500.0,0.00025205,2]
[336888604,1725233453038,-639.87,0.00025205,2]
[336888605,1725233453046,-151.0,0.00025205,7]
[336888606,1725233453057,-500.0,0.00025205,2]
[336888607,1725233453066,-151.0,0.00025205,7]
[336888608,1725233453075,-870.86,0.00025205,2]
[336888609,1725233453084,-500.0,0.00025205,2]
[336888610,1725233453094,-500.0,0.00025205,2]
[336888611,1725233453104,-603.14385645,0.00025205,2]
[336888612,1725233453113,-497.34361056,0.00025205,2]
[336888613,1725233453122,-500.0,0.00025205,2]
[336888614,1725233453131,-689.79,0.00025205,2]
[336888615,1725233453140,-500.0,0.00025205,2]
[336888616,1725233453149,-759.55,0.00025205,2]
[336888617,1725233453159,-500.0,0.00025205,2]
[336888618,1725233453168,-500.0,0.00025205,2]
[336888619,1725233453177,-500.0,0.00025205,2]
[336888620,1725233453186,-850.64,0.00025205,2]
[336888621,1725233453195,-504.64872471,0.00025205,2]
[336888622,1725233453204,-500.0,0.00025205,2]
[336888623,1725233453214,-500.0,0.00025205,2]
[336888624,1725233453224,-500.0,0.00025205,2]
[336888625,1725233453233,-500.0,0.00025205,2]
[336888626,1725233453242,-500.0,0.00025205,2]
[336888627,1725233453252,-500.0,0.00025205,2]
[336888628,1725233453262,-500.0,0.00025205,2]
[336888629,1725233453271,-500.0,0.00025205,2]
[336888630,1725233453281,-500.0,0.00025205,2]
[336888631,1725233453290,-500.0,0.00025205,2]
[336888632,1725233453302,-500.0,0.00025205,4]
[336888633,1725233453311,-500.0,0.00025205,2]
[336888634,1725233453321,-500.0,0.00025205,2]
[336888635,1725233453331,-500.0,0.00025205,2]
[336888636,1725233453341,-669.82,0.00025205,2]
[336888637,1725233453350,-500.0,0.00025205,2]
[336888638,1725233453360,-205.2154164,0.00025205,2]
[336888639,1725233453370,-578.34,0.00025205,2]
[336888640,1725233453380,-647.61,0.00025205,2]
[336888641,1725233453390,-1239.9,0.00025205,2]
[336888642,1725233453400,-500.0,0.00025205,2]
[336888643,1725233453410,-500.0,0.00025205,2]
[336888644,1725233453419,-500.0,0.00025205,2]
[336888645,1725233453429,-500.0,0.00025205,2]
[336888646,1725233453438,-500.0,0.00025205,2]
[336888647,1725233453447,-500.0,0.00025205,2]
[336888648,1725233453456,-1014.8,0.00025205,2]
[336888649,1725233453465,-500.0,0.00025205,2]
[336888650,1725233453475,-500.0,0.00025205,2]
[336888651,1725233453484,-500.0,0.00025205,2]
[336888652,1725233453493,-247.901188,0.00025205,2]
[336888653,1725233453502,-529.85447976,0.00025205,2]
[336888654,1725233453511,-955.98,0.00025205,2]
[336888655,1725233453521,-206.020974,0.00025205,7]
[336888656,1725233453531,-206.020974,0.00025205,7]
[336888657,1725233453540,-206.020974,0.00025205,7]
[336888658,1725233453565,-206.020974,0.00025205,7]
[336888659,1725233453584,-500.0,0.00025205,2]
[336888660,1725233453598,-500.0,0.00025205,2]
[336888661,1725233453615,-500.0,0.00025205,2]
[336888662,1725233453629,-1146.54,0.00025205,2]
[336888663,1725233453644,-500.0,0.00025205,2]
[336888664,1725233453661,-500.0,0.00025205,2]
[336888665,1725233453676,-670.81,0.00025205,2]
[336888666,1725233453690,-500.0,0.00025205,2]
[336888667,1725233453706,-417.32387967,0.00025205,2]
[336888668,1725233453721,-500.0,0.00025205,2]
[336888669,1725233453734,-781.11,0.00025205,2]
[336888670,1725233453749,-284.92661686,0.00025205,2]
[336888671,1725233453764,-500.0,0.00025205,2]
[336888672,1725233453779,-500.0,0.00025205,2]
[336888673,1725233453796,-262.95464729,0.00025205,2]
[336888674,1725233453816,-500.0,0.00025205,2]
[336888675,1725233453827,-1712.49,0.00025205,2]
[336888676,1725233453842,-500.0,0.00025205,2]
[336888677,1725233453857,-500.0,0.00025205,2]
[336888678,1725233453871,-500.0,0.00025205,2]
[336888679,1725233453886,-500.0,0.00025205,2]
[336888680,1725233453900,-500.0,0.00025205,2]
[336888681,1725233453912,-500.0,0.00025205,2]
[336888682,1725233453925,-500.0,0.00025205,2]
[336888683,1725233453940,-500.0,0.00025205,2]
[336888684,1725233453954,-505.35678504,0.00025205,2]
[336888685,1725233453969,-2272.43,0.00025205,2]
[336888686,1725233453982,-500.0,0.00025205,2]
[336888687,1725233453995,-500.0,0.00025205,2]
[336888688,1725233454008,-500.0,0.00025205,2]
[336888689,1725233454024,-500.0,0.00025205,2]
[336888690,1725233454037,-500.0,0.00025205,2]
[336888691,1725233454050,-500.0,0.00025205,2]
[336888692,1725233454065,-866.18,0.00025205,2]
[336888693,1725233454078,-500.0,0.00025205,2]
[336888694,1725233454091,-542.6603764,0.00025205,2]
[336888695,1725233454107,-500.0,0.00025205,2]
[336888696,1725233454119,-580.07,0.00025205,2]
[336888697,1725233454132,-1098.35,0.00025205,2]
[336888698,1725233454145,-510.32,0.00025205,2]
[336888699,1725233454159,-500.0,0.00025205,2]
[336888700,1725233454172,-2246.05,0.00025205,2]
[336888701,1725233454185,-500.0,0.00025205,2]
[336888702,1725233454198,-719.56,0.00025205,2]
[336888703,1725233454210,-1653.39,0.00025205,2]
[336888704,1725233454223,-1549.62,0.00025205,2]
[336888705,1725233454236,-500.0,0.00025205,2]
[336888706,1725233454248,-909.05,0.00025205,2]
[336888707,1725233454262,-884.34,0.00025205,2]
[336888708,1725233454275,-500.0,0.00025205,2]
[336888709,1725233454288,-500.0,0.00025205,2]
[336888710,1725233454303,-2280.47,0.00025205,2]
[336888711,1725233454315,-500.0,0.00025205,2]
[336888712,1725233454329,-500.0,0.00025205,2]
[336888713,1725233454342,-1522.86,0.00025205,2]
[336888714,1725233454355,-500.0,0.00025205,2]
[336888715,1725233454368,-596.72,0.00025205,2]
[336888716,1725233454381,-1975.9,0.00025205,2]
[336888717,1725233454394,-500.0,0.00025205,2]
[336888718,1725233454406,-712.218596,0.00025205,7]
[336888719,1725233454419,-2241.93,0.00025205,2]
[336888720,1725233454432,-712.218596,0.00025205,7]
[336888721,1725233454444,-556.85,0.00025205,2]
[336888722,1725233454457,-740.31,0.00025205,2]
[336888723,1725233454469,-1370.86,0.00025205,2]
[336888724,1725233454482,-712.218596,0.00025205,7]
[336888725,1725233454495,-712.218596,0.00025205,7]
[336888726,1725233454508,-500.0,0.00025205,2]
[336888727,1725233454521,-500.0,0.00025205,2]
[336888728,1725233454534,-500.0,0.00025205,2]
[336888729,1725233454543,-757.7,0.00025205,2]
[336888730,1725233454555,-500.0,0.00025205,2]
[336888731,1725233454565,-500.0,0.00025205,2]
[336888732,1725233454575,-500.0,0.00025205,2]
[336888733,1725233454585,-500.0,0.00025205,2]
[336888734,1725233454594,-180.70861608,0.00025205,2]
[336888735,1725233454603,-500.0,0.00025205,2]
[336888736,1725233454613,-3217.34,0.00025205,2]
[336888737,1725233454623,-1780.41,0.00025205,2]
[336888738,1725233454632,-500.0,0.00025205,2]
[336888739,1725233454641,-500.0,0.00025205,2]
[336888740,1725233454651,-14185.66,0.00025205,2]
[336888741,1725233454660,-500.0,0.00025205,2]
[336888742,1725233454669,-1568.11,0.00025205,2]
[336888743,1725233454679,-500.0,0.00025205,2]
[336888744,1725233454688,-678.57,0.00025205,2]
[336888745,1725233454698,-500.0,0.00025205,2]
[336888746,1725233454707,-500.0,0.00025205,2]
[336888747,1725233454716,-1769.13,0.00025205,2]
[336888748,1725233454725,-500.0,0.00025205,2]
[336888749,1725233454735,-500.0,0.00025205,2]
[336888750,1725233454744,-1948.8,0.00025205,2]
[336888751,1725233454753,-500.0,0.00025205,2]
[336888752,1725233454763,-531.01,0.00025205,2]
[336888753,1725233455042,-1076.27,0.00025205,2]
[336888754,1725233455060,-2754.06,0.00025205,2]
[336888755,1725233455069,-587.02995947,0.00025205,2]
[336888756,1725233455079,-500.0,0.00025205,2]
[336888757,1725233455089,-500.0,0.00025205,2]
[336888758,1725233455098,-635.95,0.00025205,2]
[336888759,1725233455108,-500.0,0.00025205,2]
[336888760,1725233455118,-672.12,0.00025205,2]
[336888761,1725233455127,-4000.0,0.00025205,2]
[336888762,1725233455136,-4000.0,0.00025205,2]
[336888763,1725233455145,-4000.0,0.00025205,2]
[336888764,1725233455154,-500.0,0.00025205,2]
[336888765,1725233455164,-465.348636,0.00025205,2]
[336888766,1725233455173,-2363.96,0.00025205,2]
[336888767,1725233455183,-779.93,0.00025205,2]